Department Family,Entity,Date,Expense Type,Expense Area,Supplier,Transaction Number,Amount
DOH,London Ambulance Service NHS Trust,14/11/2018,Cloud Based Services,Systems,Bsi Cybersec & Info Resilience (Ireland) Ltd,410150,-183350.00 
DOH,London Ambulance Service NHS Trust,14/11/2018,IT Technical Support,Systems,Bsi Cybersec & Info Resilience (Ireland) Ltd,410150,-8000.00 
DOH,London Ambulance Service NHS Trust,01/11/2018,Vehicles,Capital,Wilker Auto Conversions,414730,59983.00 
DOH,London Ambulance Service NHS Trust,14/11/2018,Electrical Planned,111 Nel Project Implementation,Computer Power Protection (Sales) Ltd,416334,28438.20 
DOH,London Ambulance Service NHS Trust,14/11/2018,Electrical Components,111 Nel Project Implementation,Computer Power Protection (Sales) Ltd,418645,33646.80 
DOH,London Ambulance Service NHS Trust,01/11/2018,Tyres,Fleet Support Services,Ats Euromaster Ltd,422594,39375.71 
DOH,London Ambulance Service NHS Trust,01/11/2018,Data Network Rental,Networks,Bt Teleworker,422920,62723.76 
DOH,London Ambulance Service NHS Trust,09/11/2018,Phone & Fax Maint & Repair,Networks,Daisy Communications Ltd,422992,62098.75 
DOH,London Ambulance Service NHS Trust,01/11/2018,Data Network Rental,Networks,Bt Global Services,424582,31869.74 
DOH,London Ambulance Service NHS Trust,01/11/2018,Vehicles,Capital,Wilker Auto Conversions,424723,59983.00 
DOH,London Ambulance Service NHS Trust,01/11/2018,Vehicles,Capital,Wilker Auto Conversions,424724,59983.00 
DOH,London Ambulance Service NHS Trust,01/11/2018,Vehicles,Capital,Wilker Auto Conversions,424725,59983.00 
DOH,London Ambulance Service NHS Trust,01/11/2018,Vehicles,Capital,Wilker Auto Conversions,424726,59983.00 
DOH,London Ambulance Service NHS Trust,01/11/2018,Vehicles,Capital,Wilker Auto Conversions,424727,59983.00 
DOH,London Ambulance Service NHS Trust,01/11/2018,Vehicles,Capital,Wilker Auto Conversions,424728,59983.00 
DOH,London Ambulance Service NHS Trust,01/11/2018,Vehicles,Capital,Wilker Auto Conversions,424729,59983.00 
DOH,London Ambulance Service NHS Trust,01/11/2018,Vehicles,Capital,Wilker Auto Conversions,424730,59983.00 
DOH,London Ambulance Service NHS Trust,14/11/2018,Cloud Based Services,Systems,Bsi Cybersec & Info Resilience (Ireland) Ltd,425005,183350.00 
DOH,London Ambulance Service NHS Trust,14/11/2018,Cloud Based Services,Systems,Bsi Cybersec & Info Resilience (Ireland) Ltd,425005,8000.00 
DOH,London Ambulance Service NHS Trust,01/11/2018,Buildings,Capital,Coniston Limited,425327,52800.00 
DOH,London Ambulance Service NHS Trust,01/11/2018,Vehicles,Capital,Wilker Auto Conversions,427410,59983.00 
DOH,London Ambulance Service NHS Trust,01/11/2018,Vehicles,Capital,Wilker Auto Conversions,427411,59983.00 
DOH,London Ambulance Service NHS Trust,01/11/2018,Vehicles,Capital,Wilker Auto Conversions,427412,59983.00 
DOH,London Ambulance Service NHS Trust,01/11/2018,Tyres,Fleet Support Services,Ats Euromaster Ltd,427648,38641.06 
DOH,London Ambulance Service NHS Trust,02/11/2018,Taxis & Mini Cabs,Sub-Contracted Transport,Addison Lee,427910,36215.04 
DOH,London Ambulance Service NHS Trust,01/11/2018,Phone & Fax Calls,Networks,Bt Teleworker,427927,-69442.20 
DOH,London Ambulance Service NHS Trust,02/11/2018,Data Network Rental,Networks,Bt Teleworker,428219,117392.98 
DOH,London Ambulance Service NHS Trust,09/11/2018,Buildings,Capital,Gd Smy Ltd,429134,26718.26 
DOH,London Ambulance Service NHS Trust,21/11/2018,Contract Labour,Vehicle Resouce Centre,Churchill Contract Services Ltd,429142,62739.04 
DOH,London Ambulance Service NHS Trust,13/11/2018,Private Ambulance Hire,Ops Central - Private Amb,Falck Uk Ambulance Service Ltd,429364,49548.73 
DOH,London Ambulance Service NHS Trust,13/11/2018,Private Ambulance Hire,Ops Central - Private Amb,Falck Uk Ambulance Service Ltd,429365,59834.29 
DOH,London Ambulance Service NHS Trust,02/11/2018,Computer Software,111 Nel Operations,Software Box Ltd,429538,29802.18 
DOH,London Ambulance Service NHS Trust,14/11/2018,Internal Audit Fees,Corporate Governance,Grant Thornton Uk Llp,429689,32400.00 
DOH,London Ambulance Service NHS Trust,02/11/2018,Taxis & Mini Cabs,Sub-Contracted Transport,Addison Lee,429964,34764.38 
DOH,London Ambulance Service NHS Trust,09/11/2018,Private Ambulance Hire,Ops Central - Private Amb,St John Ambulance Londonprince,430009,30700.99 
DOH,London Ambulance Service NHS Trust,09/11/2018,Private Ambulance Hire,Ops Central - Private Amb,St John Ambulance Londonprince,430010,38459.64 
DOH,London Ambulance Service NHS Trust,02/11/2018,Taxis & Mini Cabs,Sub-Contracted Transport,Addison Lee,430154,40087.87 
DOH,London Ambulance Service NHS Trust,01/11/2018,Data Network Rental,Networks,Bt Global Services,430474,31869.74 
DOH,London Ambulance Service NHS Trust,02/11/2018,Computer Software Maintenance,Management Information,Itesoft Uk Ltd,431126,27252.00 
DOH,London Ambulance Service NHS Trust,02/11/2018,Lease Costs For Ops Vehicles,Non Emergency Transport,Tp Leasing Ltd,431128,74144.03 
DOH,London Ambulance Service NHS Trust,02/11/2018,Lease Costs For Ops Vehicles,Non Emergency Transport,Tp Leasing Ltd,431129,42368.02 
DOH,London Ambulance Service NHS Trust,01/11/2018,Data Network Rental,Networks,Bt Teleworker,431788,80633.34 
DOH,London Ambulance Service NHS Trust,02/11/2018,Technical Support - Contract,Capita Contract,Capita Secure Information Solutions Ltd,431836,61254.52 
DOH,London Ambulance Service NHS Trust,07/11/2018,Drugs,Supply & Material Management,Openhouse Products Ltd,431844,29028.00 
DOH,London Ambulance Service NHS Trust,01/11/2018,Contract Labour,Corporate Logistics,Interserve Hospital Services,432065,435549.60 
DOH,London Ambulance Service NHS Trust,13/11/2018,Private Ambulance Hire,Ops Central - Private Amb,Falck Uk Ambulance Service Ltd,432316,61792.36 
DOH,London Ambulance Service NHS Trust,21/11/2018,Cad Tools Maintenance,Cad Support,Northgate Public Services (Uk) Ltd,432923,49367.77 
DOH,London Ambulance Service NHS Trust,16/11/2018,Tyres,Fleet Support Services,Ats Euromaster Ltd,433041,48378.50 
DOH,London Ambulance Service NHS Trust,13/11/2018,Private Ambulance Hire,Ops Central - Private Amb,Falck Uk Ambulance Service Ltd,433610,63427.61 
DOH,London Ambulance Service NHS Trust,13/11/2018,Private Ambulance Hire,Ops Central - Private Amb,Falck Uk Ambulance Service Ltd,433611,64477.71 
DOH,London Ambulance Service NHS Trust,16/11/2018,Private Ambulance Hire,Ops Central - Private Amb,St John Ambulance Londonprince,433684,37905.08 
DOH,London Ambulance Service NHS Trust,14/11/2018,Buildings,Capital,Smith & Company Building & Company,434065,90000.00 
DOH,London Ambulance Service NHS Trust,23/11/2018,Contract Labour,Vehicle Resouce Centre,Churchill Contract Services Ltd,434367,62739.04 
DOH,London Ambulance Service NHS Trust,09/11/2018,Cleaning Of Premises,Property Management,Lakethorne Ltd,434685,94085.84 
DOH,London Ambulance Service NHS Trust,02/11/2018,Phone & Fax Line Rental,Networks,Bt Teleworker,434739,90849.18 
DOH,London Ambulance Service NHS Trust,02/11/2018,Phone & Fax Line Rental,Networks,Bt Teleworker,434740,-75814.56 
DOH,London Ambulance Service NHS Trust,01/11/2018,Data Network Rental,Networks,Bt Teleworker,434741,-62723.76 
DOH,London Ambulance Service NHS Trust,16/11/2018,Computer Hardware,Capital,Daisy Communications Ltd,434748,55943.88 
DOH,London Ambulance Service NHS Trust,16/11/2018,Computer Hardware,111 NEL Project Implementation,Daisy Communications Ltd,434748,1340.06 
DOH,London Ambulance Service NHS Trust,23/11/2018,Vehicle Recovery,Fleet Support Services,The Mansfield Group,435215,49474.97 
DOH,London Ambulance Service NHS Trust,21/11/2018,Professional Fees,Director Of Ops,Working Time Solutions Ltd,435724,28680.00 
DOH,London Ambulance Service NHS Trust,23/11/2018,Private Ambulance Hire,Ops Central - Private Amb,Falck Uk Ambulance Service Ltd,436181,64604.09 
DOH,London Ambulance Service NHS Trust,23/11/2018,Private Ambulance Hire,Ops Central - Private Amb,Falck Uk Ambulance Service Ltd,436182,61272.09 
DOH,London Ambulance Service NHS Trust,13/11/2018,Private Ambulance Hire,Ops Central - Private Amb,Falck Uk Ambulance Service Ltd,436413,59834.59 
DOH,London Ambulance Service NHS Trust,13/11/2018,Private Ambulance Hire,Ops Central - Private Amb,Falck Uk Ambulance Service Ltd,436415,59834.29 
DOH,London Ambulance Service NHS Trust,13/11/2018,Private Ambulance Hire,Ops Central - Private Amb,Falck Uk Ambulance Service Ltd,436416,-59834.29 
DOH,London Ambulance Service NHS Trust,13/11/2018,Private Ambulance Hire,Ops Central - Private Amb,Falck Uk Ambulance Service Ltd,436417,-59834.29 
DOH,London Ambulance Service NHS Trust,20/11/2018,General Insurance,Tactical Response Unit,Miller Insurance Services Ltd,437668,25863.20 
DOH,London Ambulance Service NHS Trust,23/11/2018,Professional Fees,Strategy,Pa Consulting Services Ltd,437863,59512.80 
DOH,London Ambulance Service NHS Trust,21/11/2018,Water & Sewerage Charges,Property Management,Castle Water Limited,438024,-48945.58 
DOH,London Ambulance Service NHS Trust,01/11/2018,Ensign Insurance Debtor,Control Accounts,QBE International Insurance T/A Ensign,57913,246231.66 
DOH,London Ambulance Service NHS Trust,26/11/2018,Medical Gas,Director Of Ops,British Oxygen,58248,114501.71 
DOH,London Ambulance Service NHS Trust,15/11/2018,Fuel,Director Of Ops,BP Oil,58112,234026.45 
DOH,London Ambulance Service NHS Trust,21/11/2018,Child Care Arrangements,Payroll,Computerserve Vouchers,58152,31737.77 
DOH,London Ambulance Service NHS Trust,15/11/2018,CNST Contributions,Legal Services,NHSLA,58112,362082.50 
DOH,London Ambulance Service NHS Trust,15/11/2018,Liability to 3rd Party Scheme,Legal Services,NHSLA,58112,40724.10 
DOH,London Ambulance Service NHS Trust,15/11/2018,Property Expenses Scheme,Legal Services,NHSLA,58112,2431.50 
DOH,London Ambulance Service NHS Trust,30/11/2018,Fuel,Director Of Ops,BP Oil,58726,237814.36 
